fUST/lending_fUST_20250221
["ID","MTS","AMOUNT","RATE_DAILY","PERIOD"]
[353847702,1740091840113,-500.0,0.00013863,2]
[353847704,1740091840123,-500.0,0.00013863,2]
[353847706,1740091840133,-500.0,0.00013863,2]
[353847708,1740091840142,-500.0,0.00013863,2]
[353847709,1740091840151,-242.50196101,0.00013863,2]
[353847711,1740091840161,-500.0,0.00013863,2]
[353847713,1740091840171,-631.36,0.00013863,2]
[353847715,1740091840180,-1377.57,0.00013863,2]
[353847717,1740091840190,-500.0,0.00013863,2]
[353847719,1740091840199,-555.94,0.00013863,2]
[353847721,1740091840208,-500.0,0.00013863,2]
[353847722,1740091840218,-1000.63,0.00013863,2]
[353847724,1740091840228,-181.0,0.00013863,2]
[353847726,1740091840237,-500.0,0.00013863,2]
[353847728,1740091840248,-500.0,0.00013863,2]
[353847730,1740091840257,-900.89,0.00013863,2]
[353847732,1740091840267,-530.9174586,0.00013863,2]
[353847734,1740091840276,-664.48,0.00013863,2]
[353847736,1740091840286,-500.0,0.00013863,2]
[353847737,1740091840296,-500.0,0.00013863,2]
[353847739,1740091840305,-506.64,0.00013863,2]
[353847741,1740091840314,-500.0,0.00013863,2]
[353847744,1740091840323,-500.0,0.00013863,2]
[353847746,1740091840333,-601.74,0.00013863,2]
[353847748,1740091840342,-500.0,0.00013863,2]
[353847750,1740091840352,-500.0,0.00013863,2]
[353847752,1740091840361,-546.38,0.00013863,2]
[353847754,1740091840370,-500.0,0.00013863,2]
[353847755,1740091840380,-500.0,0.00013863,2]
[353847758,1740091840390,-502.52088211,0.00013863,2]
[353847759,1740091840400,-4502.58,0.00013863,2]
[353847761,1740091840409,-500.0,0.00013863,2]
[353847763,1740091840419,-306.462855,0.00013863,2]
[353847773,1740091840513,-886.79,0.00013863,2]
[353847775,1740091840522,-1849.94,0.00013863,2]
[353847777,1740091840532,-500.0,0.00013863,2]
[353847779,1740091840540,-1370.08,0.00013863,2]
[353847781,1740091840550,-567.37,0.00013863,2]
[353847782,1740091840559,-500.0,0.00013863,2]
[353847784,1740091840568,-1573.46,0.00013863,2]
[353847786,1740091840577,-749.35,0.00013863,2]
[353847788,1740091840589,-480.08567143,0.00013863,2]
[353847790,1740091840599,-16707.96,0.00013863,2]
[353847792,1740091840608,-500.0,0.00013863,2]
[353847793,1740091840617,-500.0,0.00013863,2]
[353847795,1740091840627,-47582.77,0.00013863,2]
[353847797,1740091840636,-500.0,0.00013863,2]
[353847799,1740091840646,-1419.31,0.00013863,2]
[353847801,1740091840655,-2371.63,0.00013863,2]
[353847803,1740091840664,-500.0,0.00013863,2]
[353847805,1740091840674,-3044.91,0.00013863,2]
[353847807,1740091840683,-1421.06,0.00013863,2]
[353847809,1740091840693,-341.33759118,0.00013863,2]
[353847810,1740091840702,-1981.43,0.00013863,2]
[353847812,1740091840712,-1485.07,0.00013863,2]
[353847814,1740091840721,-500.0,0.00013863,2]
[353847816,1740091840731,-4309.84,0.00013863,2]
[353847818,1740091840741,-500.0,0.00013863,2]
[353847820,1740091840750,-8528.76,0.00013863,2]
[353847822,1740091840760,-630.65,0.00013863,2]
[353847824,1740091840770,-500.0,0.00013863,2]
[353847826,1740091840779,-506.4,0.00013863,2]
[353847827,1740091840788,-500.0,0.00013863,2]
[353847829,1740091840798,-1073.14,0.00013863,2]
[353847831,1740091840807,-4317.45,0.00013863,2]
[353847833,1740091840816,-2449.34,0.00013863,2]
[353847835,1740091840825,-308.07,0.00013863,2]
[353847837,1740091840834,-500.0,0.00013863,2]
[353847839,1740091840846,-1506.63,0.00013863,2]
[353847841,1740091840859,-601.98,0.00013863,2]
[353847843,1740091840869,-4294.1,0.00013863,2]
[353847845,1740091840878,-645.96,0.00013863,2]
[353847847,1740091840888,-500.0,0.00013863,2]
[353847849,1740091840898,-305.26121801,0.00013863,2]
[353847850,1740091840908,-744.2,0.00013863,2]
[353847852,1740091840917,-1264.16,0.00013863,2]
[353847854,1740091840926,-1017.94,0.00013863,2]
[353847856,1740091840937,-671.35,0.00013863,2]
[353847859,1740091840947,-2214.99,0.00013863,2]
[353847861,1740091840956,-707.81,0.00013863,2]
[353847863,1740091840965,-500.0,0.00013863,2]
[353847865,1740091840974,-547.37597785,0.00013863,2]
[353847867,1740091840982,-500.0,0.00013863,2]
[353847869,1740091840991,-2494.82,0.00013863,2]
[353847870,1740091841000,-2395.75,0.00013863,2]
[353847872,1740091841009,-605.1,0.00013863,2]
[353847874,1740091841018,-500.0,0.00013863,2]
[353847876,1740091841028,-20855.28,0.00013863,2]
[353847878,1740091841037,-899.23,0.00013863,2]
[353847880,1740091841046,-2809.02,0.00013863,2]
[353847882,1740091841055,-500.0,0.00013863,2]
[353847884,1740091841064,-6937.4,0.00013863,2]
[353847886,1740091841073,-2444.33,0.00013863,2]
[353847888,1740091841083,-2173.53,0.00013863,2]
[353847889,1740091841091,-500.0,0.00013863,2]
[353847891,1740091841101,-187.82799862,0.00013863,2]
[353847893,1740091841111,-656.62,0.00013863,2]
[353847895,1740091841121,-1073.43,0.00013863,2]
[353847897,1740091841131,-500.0,0.00013863,2]
[353847899,1740091841140,-457.99526491,0.00013863,2]
[353847901,1740091841150,-681.21,0.00013863,2]
[353847903,1740091841159,-500.0,0.00013863,2]
[353847905,1740091841169,-516.7,0.00013863,2]
[353847907,1740091841180,-2663.01,0.00013863,2]
[353847909,1740091841189,-500.0,0.00013863,2]
[353847911,1740091841199,-500.0,0.00013863,2]
[353847912,1740091841208,-3692.28,0.00013863,2]
[353847914,1740091841217,-500.0,0.00013863,2]
[353847916,1740091841227,-500.0,0.00013863,2]
[353847918,1740091841236,-2459.84031816,0.00013868,2]
[353847920,1740091841245,-160.0,0.00013876,3]
[353847922,1740091841254,-151.0,0.000139,2]
[353847924,1740091841264,-151.0,0.000139,2]
[353847926,1740091841273,-151.0,0.000139,2]
[353847927,1740091841282,-151.0,0.000139,2]
[353847929,1740091841292,-151.0,0.000139,2]
[353847931,1740091841301,-151.0,0.000139,2]
[353847933,1740091841311,-500.0,0.00013945,2]
[353847935,1740091841320,-500.0,0.00013945,2]
[353847937,1740091841330,-500.0,0.00013945,2]
[353847939,1740091841340,-500.0,0.00013945,2]
[353847941,1740091841349,-686.68,0.00013945,2]
[353847943,1740091841357,-500.0,0.00013945,2]
[353847945,1740091841371,-500.0,0.00013945,2]
[353847948,1740091841389,-671.74,0.00013945,2]
[353847950,1740091841404,-500.0,0.00013945,2]
[353847952,1740091841415,-500.0,0.00013945,2]
[353847955,1740091841431,-500.0,0.00013945,2]
[353847957,1740091841444,-1783.85,0.00013945,2]
[353847959,1740091841459,-500.0,0.00013945,2]
[353847962,1740091841472,-500.0,0.00013945,2]
[353847964,1740091841487,-500.0,0.00013945,2]
[353847965,1740091841502,-862.2,0.00013945,2]
[353847966,1740091841515,-500.0,0.00013945,2]
[353847967,1740091841527,-1028.23,0.00013945,2]
[353847968,1740091841542,-1124.71,0.00013945,2]
[353847969,1740091841556,-500.0,0.00013945,2]
[353847970,1740091841570,-500.0,0.00013945,2]
[353847971,1740091841581,-707.15,0.00013945,2]
[353847972,1740091841594,-500.0,0.00013945,2]
[353847973,1740091841606,-500.0,0.00013945,2]
[353847974,1740091841621,-1000.0,0.00013945,2]
[353847975,1740091841633,-775.53,0.00013945,2]
[353847976,1740091841649,-1370.18,0.00013945,2]
[353847977,1740091841663,-729.43,0.00013945,2]
[353847978,1740091841677,-500.0,0.00013945,2]
[353847979,1740091841688,-928.99,0.00013945,2]
[353847980,1740091841699,-500.0,0.00013945,2]
[353847981,1740091841713,-1504.71,0.00013945,2]
[353847982,1740091841728,-721.69,0.00013945,2]
[353847983,1740091841741,-693.21,0.00013945,2]
[353847984,1740091841753,-500.0,0.00013945,2]
[353847985,1740091841765,-500.0,0.00013945,2]
[353847986,1740091841779,-500.0,0.00013945,2]
[353847987,1740091841791,-631.36,0.00013945,2]
[353847988,1740091841803,-1377.57,0.00013945,2]
[353847989,1740091841814,-500.0,0.00013945,2]
[353847990,1740091841826,-555.94,0.00013945,2]
[353847991,1740091841839,-500.0,0.00013945,2]
[353847992,1740091841854,-1000.63,0.00013945,2]
[353847994,1740091841866,-500.0,0.00013945,2]
[353847995,1740091841878,-500.0,0.00013945,2]
[353847998,1740091841890,-900.89,0.00013945,2]
[353847999,1740091841903,-664.48,0.00013945,2]
[353848000,1740091841914,-500.0,0.00013945,2]
[353848001,1740091841926,-500.0,0.00013945,2]
[353848002,1740091841938,-249.58592137,0.00013945,2]
[353848003,1740091841950,-500.0,0.00013945,2]
[353848004,1740091841963,-601.74,0.00013945,2]
[353848006,1740091841974,-502.63346704,0.00013945,2]
[353848009,1740091841987,-546.38,0.00013945,2]
[353848011,1740091841998,-500.0,0.00013945,2]
[353848012,1740091842010,-500.0,0.00013945,2]
[353848014,1740091842022,-4502.58,0.00013945,2]
[353848016,1740091842034,-500.0,0.00013945,2]
[353848017,1740091842045,-886.79,0.00013945,2]
[353848018,1740091842058,-1849.94,0.00013945,2]
[353848019,1740091842070,-500.0,0.00013945,2]
[353848020,1740091842082,-1370.08,0.00013945,2]
[353848021,1740091842094,-581.07897459,0.00013945,2]
[353848022,1740091842106,-1573.46,0.00013945,2]
[353848023,1740091842118,-749.35,0.00013945,2]
[353848024,1740091842130,-16707.96,0.00013945,2]
[353848025,1740091842142,-500.0,0.00013945,2]
[353848026,1740091842153,-41961.54086206,0.00013945,2]
[353848027,1740091842466,-478.06533214,0.00013945,2]
[353848028,1740091842478,-1000.0,0.00013945,2]
[353848029,1740091842494,-3986.35913739,0.00013945,2]
[353848030,1740091842505,-156.80466841,0.00013945,2]
[353848031,1740091842515,-500.0,0.00013945,2]
[353848032,1740091842524,-1419.31,0.00013945,2]
[353848033,1740091842533,-2371.63,0.00013945,2]
[353848034,1740091842542,-269.22348911,0.00013945,2]
[353848035,1740091842551,-3044.91,0.00013945,2]
[353848036,1740091842561,-1421.06,0.00013945,2]
[353848037,1740091842570,-1981.43,0.00013945,2]
[353848038,1740091842579,-1485.07,0.00013945,2]
[353848039,1740091842588,-500.0,0.00013945,2]
[353848040,1740091842598,-2291.2241418,0.00013945,2]
[353848041,1740091842611,-586.9874673,0.00013945,2]
[353848081,1740091843666,-332.52,0.00010959,2]
[353848084,1740091843675,-584.31616663,0.00013573,2]
[353848087,1740091843685,-750.8,0.00013698,2]
[353848091,1740091843694,-750.8,0.0001378,2]
[353848094,1740091843703,-1431.6283909,0.00013945,2]
[353848096,1740091843713,-8528.76,0.00013945,2]
[353848098,1740091843722,-630.65,0.00013945,2]
[353848100,1740091843731,-506.4,0.00013945,2]
[353848102,1740091843740,-500.0,0.00013945,2]
[353848104,1740091843749,-1073.14,0.00013945,2]
[353848106,1740091843758,-4317.45,0.00013945,2]
[353848108,1740091843767,-2449.34,0.00013945,2]
[353848110,1740091843776,-473.78484,0.00013945,2]
[353848112,1740091843786,-1506.63,0.00013945,2]
[353848114,1740091843795,-601.98,0.00013945,2]
[353848116,1740091843804,-3082.94643346,0.00013945,2]
[353848120,1740091843835,-750.8,0.00013863,2]
[353848122,1740091843849,-1211.15356654,0.00013945,2]
[353848124,1740091843868,-645.96,0.00013945,2]
[353848126,1740091843882,-500.0,0.00013945,2]
[353848128,1740091843892,-744.2,0.00013945,2]
[353848131,1740091843902,-1264.16,0.00013945,2]
[353848132,1740091843911,-1017.94,0.00013945,2]
[353848135,1740091843920,-671.35,0.00013945,2]
[353848137,1740091843929,-2214.99,0.00013945,2]
[353848138,1740091843938,-707.81,0.00013945,2]
[353848141,1740091843948,-500.0,0.00013945,2]
[353848143,1740091843957,-500.0,0.00013945,2]
[353848145,1740091843966,-2494.82,0.00013945,2]
[353848147,1740091843975,-2395.75,0.00013945,2]
[353848149,1740091843984,-605.1,0.00013945,2]
[353848151,1740091843993,-20855.28,0.00013945,2]
[353848152,1740091844002,-899.23,0.00013945,2]
[353848155,1740091844011,-2809.02,0.00013945,2]
[353848157,1740091844020,-500.0,0.00013945,2]
[353848158,1740091844030,-6937.4,0.00013945,2]
[353848161,1740091844039,-2444.33,0.00013945,2]
[353848162,1740091844048,-2173.53,0.00013945,2]
[353848164,1740091844058,-500.0,0.00013945,2]
[353848167,1740091844068,-656.62,0.00013945,2]
[353848169,1740091844077,-1073.43,0.00013945,2]
[353848171,1740091844086,-500.0,0.00013945,2]
[353848173,1740091844096,-681.21,0.00013945,2]
[353848175,1740091844105,-500.0,0.00013945,2]
[353848177,1740091844114,-516.7,0.00013945,2]
[353848179,1740091844124,-2663.01,0.00013945,2]
[353848181,1740091844134,-500.0,0.00013945,2]
[353848183,1740091844143,-500.0,0.00013945,2]
[353848185,1740091844152,-3692.28,0.00013945,2]
[353848187,1740091844161,-500.0,0.00013945,2]
[353848189,1740091844170,-500.0,0.00013945,2]
[353848191,1740091844179,-7438.69753278,0.00013948,2]
[353848193,1740091844189,-151.0,0.00014,2]
[353848195,1740091844198,-151.0,0.00014,2]
[353848197,1740091844207,-161.081112,0.00014007,5]
[353848199,1740091844217,-242.45975678,0.00014027,2]
[353848201,1740091844226,-500.0,0.00014027,2]
[353848203,1740091844235,-500.0,0.00014027,2]
[353848205,1740091844245,-500.0,0.00014027,2]
[353848207,1740091844254,-686.68,0.00014027,2]
[353848209,1740091844264,-500.0,0.00014027,2]
[353848211,1740091844273,-500.0,0.00014027,2]
[353848212,1740091844283,-671.74,0.00014027,2]
[353848215,1740091844292,-500.0,0.00014027,2]
[353848217,1740091844301,-500.0,0.00014027,2]
[353848218,1740091844311,-500.0,0.00014027,2]
[353848221,1740091844320,-1783.85,0.00014027,2]
[353848222,1740091844330,-500.0,0.00014027,2]
[353848224,1740091844339,-500.0,0.00014027,2]
[353848226,1740091844348,-500.0,0.00014027,2]
[353848227,1740091844359,-862.2,0.00014027,2]
[353848228,1740091844368,-500.0,0.00014027,2]
[353848229,1740091844377,-1028.23,0.00014027,2]
[353848230,1740091844386,-1124.71,0.00014027,2]
[353848231,1740091844395,-500.0,0.00014027,2]
[353848232,1740091844404,-500.0,0.00014027,2]
[353848233,1740091844414,-707.15,0.00014027,2]
[353848234,1740091844423,-500.0,0.00014027,2]
[353848235,1740091844432,-570.54908009,0.00014027,2]
[353848236,1740091844441,-1000.0,0.00014027,2]
[353848237,1740091844450,-775.53,0.00014027,2]
[353848238,1740091844459,-1370.18,0.00014027,2]
[353848239,1740091844468,-729.43,0.00014027,2]
[353848240,1740091844477,-500.0,0.00014027,2]
[353848241,1740091844486,-928.99,0.00014027,2]
[353848242,1740091844495,-500.0,0.00014027,2]
[353848243,1740091844505,-1504.71,0.00014027,2]
[353848244,1740091844513,-721.69,0.00014027,2]
[353848245,1740091844523,-693.21,0.00014027,2]
[353848246,1740091844532,-500.0,0.00014027,2]
[353848247,1740091844541,-500.0,0.00014027,2]
[353848248,1740091844551,-631.36,0.00014027,2]
[353848249,1740091844560,-1377.57,0.00014027,2]
[353848250,1740091844569,-500.0,0.00014027,2]
[353848251,1740091844578,-555.94,0.00014027,2]
[353848252,1740091844587,-500.0,0.00014027,2]
[353848253,1740091844598,-1000.63,0.00014027,2]
[353848254,1740091844607,-500.0,0.00014027,2]
[353848255,1740091844616,-500.0,0.00014027,2]
[353848256,1740091844625,-900.89,0.00014027,2]
[353848257,1740091844634,-664.48,0.00014027,2]
[353848258,1740091844644,-500.0,0.00014027,2]
[353848259,1740091844653,-500.0,0.00014027,2]
[353848260,1740091844663,-500.0,0.00014027,2]
[353848261,1740091844672,-601.74,0.00014027,2]
[353848262,1740091844681,-546.38,0.00014027,2]
[353848263,1740091844690,-500.0,0.00014027,2]
[353848264,1740091844699,-500.0,0.00014027,2]
[353848265,1740091844709,-4502.58,0.00014027,2]
[353848266,1740091844718,-500.0,0.00014027,2]
[353848267,1740091844727,-886.79,0.00014027,2]
[353848268,1740091844736,-1849.94,0.00014027,2]
[353848269,1740091844746,-500.0,0.00014027,2]
[353848270,1740091844757,-1370.08,0.00014027,2]
[353848271,1740091844767,-1573.46,0.00014027,2]
[353848272,1740091844777,-749.35,0.00014027,2]
[353848273,1740091844786,-500.0,0.00014027,2]
[353848274,1740091844795,-47582.77,0.00014027,2]
[353848275,1740091844804,-500.0,0.00014027,2]
[353848276,1740091844813,-1419.31,0.00014027,2]
[353848277,1740091844822,-2371.63,0.00014027,2]
[353848278,1740091844831,-3044.91,0.00014027,2]
[353848279,1740091844840,-1421.06,0.00014027,2]
[353848280,1740091844850,-1981.43,0.00014027,2]
[353848281,1740091844862,-1485.07,0.00014027,2]
[353848282,1740091844871,-500.0,0.00014027,2]
[353848283,1740091844880,-4309.84,0.00014027,2]
[353848284,1740091844890,-8528.76,0.00014027,2]
[353848285,1740091844901,-630.65,0.00014027,2]
[353848286,1740091844910,-506.4,0.00014027,2]
[353848287,1740091844919,-500.0,0.00014027,2]
[353848288,1740091844930,-1073.14,0.00014027,2]
[353848289,1740091844939,-4317.45,0.00014027,2]
[353848290,1740091844948,-2449.34,0.00014027,2]
[353848291,1740091844958,-1506.63,0.00014027,2]
[353848292,1740091844967,-601.98,0.00014027,2]
[353848293,1740091844976,-4294.1,0.00014027,2]
[353848294,1740091844986,-645.96,0.00014027,2]
[353848295,1740091844996,-500.0,0.00014027,2]
[353848296,1740091845005,-744.2,0.00014027,2]
[353848297,1740091845015,-1264.16,0.00014027,2]
[353848298,1740091845024,-1017.94,0.00014027,2]
[353848299,1740091845033,-671.35,0.00014027,2]
[353848300,1740091845042,-2214.99,0.00014027,2]
[353848301,1740091845052,-707.81,0.00014027,2]
[353848302,1740091845061,-500.0,0.00014027,2]
[353848303,1740091845071,-500.0,0.00014027,2]
[353848304,1740091845079,-2494.82,0.00014027,2]
[353848305,1740091845089,-2395.75,0.00014027,2]
[353848306,1740091845098,-605.1,0.00014027,2]
[353848307,1740091845108,-20855.28,0.00014027,2]
[353848308,1740091845117,-899.23,0.00014027,2]
[353848309,1740091845240,-2809.02,0.00014027,2]
[353848310,1740091845250,-500.0,0.00014027,2]
[353848311,1740091845259,-6937.4,0.00014027,2]
[353848312,1740091845269,-2444.33,0.00014027,2]
[353848313,1740091845279,-2173.53,0.00014027,2]
[353848314,1740091845288,-500.0,0.00014027,2]
[353848315,1740091845298,-656.62,0.00014027,2]
[353848316,1740091845307,-1073.43,0.00014027,2]
[353848317,1740091845317,-500.0,0.00014027,2]
[353848318,1740091845326,-681.21,0.00014027,2]
[353848319,1740091845337,-500.0,0.00014027,2]
[353848320,1740091845347,-516.7,0.00014027,2]
[353848321,1740091845356,-2663.01,0.00014027,2]
[353848322,1740091845366,-500.0,0.00014027,2]
[353848323,1740091845376,-500.0,0.00014027,2]
[353848324,1740091845385,-3692.28,0.00014027,2]
[353848325,1740091845395,-500.0,0.00014027,2]
[353848326,1740091845404,-500.0,0.00014027,2]
[353848327,1740091845413,-151.0,0.000141,2]
[353848328,1740091845423,-500.0,0.00014109,2]
[353848329,1740091845434,-500.0,0.00014109,2]
[353848330,1740091845443,-500.0,0.00014109,2]
[353848331,1740091845453,-686.68,0.00014109,2]
[353848332,1740091845462,-500.0,0.00014109,2]
[353848333,1740091845471,-500.0,0.00014109,2]
[353848334,1740091845480,-671.74,0.00014109,2]
[353848335,1740091845489,-500.0,0.00014109,2]
[353848336,1740091845499,-500.0,0.00014109,2]
[353848337,1740091845508,-1783.85,0.00014109,2]
[353848338,1740091845518,-500.0,0.00014109,2]
[353848339,1740091845527,-500.0,0.00014109,2]
[353848340,1740091845536,-500.0,0.00014109,2]
[353848341,1740091845546,-862.2,0.00014109,2]
[353848342,1740091845556,-500.0,0.00014109,2]
[353848343,1740091845566,-1028.23,0.00014109,2]
[353848344,1740091845575,-1124.71,0.00014109,2]
[353848345,1740091845584,-500.0,0.00014109,2]
[353848346,1740091845594,-500.0,0.00014109,2]
[353848347,1740091845603,-707.15,0.00014109,2]
[353848348,1740091845612,-500.0,0.00014109,2]
[353848349,1740091845622,-1000.0,0.00014109,2]
[353848350,1740091845631,-775.53,0.00014109,2]
[353848351,1740091845641,-1370.18,0.00014109,2]
[353848352,1740091845651,-729.43,0.00014109,2]
[353848353,1740091845661,-500.0,0.00014109,2]
[353848354,1740091845670,-928.99,0.00014109,2]
[353848355,1740091845680,-500.0,0.00014109,2]
[353848356,1740091845689,-721.69,0.00014109,2]
[353848357,1740091845698,-1504.71,0.00014109,2]
[353848358,1740091845708,-693.21,0.00014109,2]
[353848359,1740091845717,-500.0,0.00014109,2]
[353848360,1740091845726,-500.0,0.00014109,2]
[353848361,1740091845736,-631.36,0.00014109,2]
[353848362,1740091845745,-1377.57,0.00014109,2]
[353848363,1740091845755,-500.0,0.00014109,2]
[353848364,1740091845765,-555.94,0.00014109,2]
[353848365,1740091845774,-316.09434136,0.00014109,2]
[353848366,1740091845783,-1000.63,0.00014109,2]
[353848367,1740091845792,-500.0,0.00014109,2]
[353848368,1740091845802,-500.0,0.00014109,2]
[353848369,1740091845811,-900.89,0.00014109,2]
[353848370,1740091845821,-664.48,0.00014109,2]
[353848371,1740091845829,-500.0,0.00014109,2]
[353848372,1740091845839,-396.08892718,0.00014109,2]
[353848373,1740091845850,-500.0,0.00014109,2]
[353848374,1740091845862,-601.74,0.00014109,2]
[353848375,1740091845871,-546.38,0.00014109,2]
[353848376,1740091845881,-500.0,0.00014109,2]
[353848377,1740091845890,-500.0,0.00014109,2]
[353848378,1740091845901,-4502.58,0.00014109,2]
[353848379,1740091845910,-500.0,0.00014109,2]
[353848380,1740091845920,-886.79,0.00014109,2]
[353848381,1740091845931,-1849.94,0.00014109,2]
[353848382,1740091845941,-500.0,0.00014109,2]
[353848383,1740091845950,-1370.08,0.00014109,2]
[353848384,1740091845959,-1573.46,0.00014109,2]
[353848385,1740091845968,-749.35,0.00014109,2]
[353848386,1740091845978,-500.0,0.00014109,2]
[353848387,1740091845987,-47582.77,0.00014109,2]
[353848388,1740091845996,-500.0,0.00014109,2]
[353848389,1740091846005,-1419.31,0.00014109,2]
[353848390,1740091846015,-2371.63,0.00014109,2]
[353848391,1740091846024,-3044.91,0.00014109,2]
[353848392,1740091846034,-1421.06,0.00014109,2]
[353848393,1740091846043,-1981.43,0.00014109,2]
[353848394,1740091846053,-1485.07,0.00014109,2]
[353848395,1740091846062,-500.0,0.00014109,2]
[353848396,1740091846071,-4309.84,0.00014109,2]
[353848398,1740091846080,-8528.76,0.00014109,2]
[353848400,1740091846090,-630.65,0.00014109,2]
[353848401,1740091846099,-506.4,0.00014109,2]
[353848403,1740091846108,-500.0,0.00014109,2]
[353848405,1740091846118,-1073.14,0.00014109,2]
[353848408,1740091846130,-4317.45,0.00014109,2]
[353848410,1740091846139,-2449.34,0.00014109,2]
[353848412,1740091846149,-1506.63,0.00014109,2]
[353848413,1740091846158,-601.98,0.00014109,2]
[353848414,1740091846167,-4294.1,0.00014109,2]
[353848415,1740091846177,-645.96,0.00014109,2]
[353848416,1740091846187,-500.0,0.00014109,2]
[353848417,1740091846196,-744.2,0.00014109,2]
[353848418,1740091846205,-1264.16,0.00014109,2]
[353848419,1740091846215,-1017.94,0.00014109,2]
[353848421,1740091846224,-671.35,0.00014109,2]
[353848423,1740091846233,-2214.99,0.00014109,2]
[353848424,1740091846243,-707.81,0.00014109,2]
[353848425,1740091846252,-500.0,0.00014109,2]
[353848426,1740091846262,-500.0,0.00014109,2]
[353848427,1740091846271,-2494.82,0.00014109,2]
[353848428,1740091846281,-2395.75,0.00014109,2]
[353848429,1740091846290,-605.1,0.00014109,2]
[353848431,1740091846299,-20855.28,0.00014109,2]
[353848433,1740091846308,-899.23,0.00014109,2]
[353848436,1740091846327,-2809.02,0.00014109,2]
[353848438,1740091846338,-500.0,0.00014109,2]
[353848440,1740091846348,-6937.4,0.00014109,2]
[353848442,1740091846358,-2444.33,0.00014109,2]
[353848443,1740091846368,-2173.53,0.00014109,2]
[353848444,1740091846378,-619.18273082,0.00014109,2]
[353848445,1740091846389,-656.62,0.00014109,2]
[353848446,1740091846399,-1073.43,0.00014109,2]
[353848448,1740091846409,-500.0,0.00014109,2]
[353848450,1740091846419,-681.21,0.00014109,2]
[353848451,1740091846430,-500.0,0.00014109,2]
[353848452,1740091846440,-516.7,0.00014109,2]
[353848453,1740091846450,-2663.01,0.00014109,2]
[353848454,1740091846460,-500.0,0.00014109,2]
[353848455,1740091846470,-500.0,0.00014109,2]
[353848456,1740091846480,-3692.28,0.00014109,2]
[353848457,1740091846490,-500.0,0.00014109,2]
[353848458,1740091846500,-500.0,0.00014109,2]
[353848459,1740091846510,-2260.87366739,0.00014125,2]
[353848460,1740091846521,-465.10366637,0.00014148,2]
[353848461,1740091846531,-653.7503432,0.00014149,2]
[353848462,1740091846541,-355.207113,0.00014164,2]
[353848464,1740091846551,-355.207113,0.00014164,2]
[353848466,1740091846561,-355.207113,0.00014164,2]
[353848467,1740091846571,-355.207113,0.00014164,2]
[353848468,1740091846580,-355.207113,0.00014164,2]
[353848469,1740091846590,-355.207113,0.00014164,2]
[353848470,1740091846599,-355.207113,0.00014164,2]
[353848471,1740091846609,-354.1549357,0.00014164,2]
[353848472,1740091846618,-500.16756516,0.00014173,2]
[353848473,1740091846628,-522.19010292,0.00014173,2]
[353848474,1740091846638,-162.10412345,0.00014173,2]
[353848475,1740091846647,-500.0,0.00014173,2]
[353848476,1740091846657,-500.0,0.00014173,2]
[353848477,1740091846669,-500.46242224,0.00014173,2]